[Event "Gibraltar Challengers A 2020"]
[Site "Caleta"]
[Date "2020.01.21"]
[Round "1.32"]
[White "Kunnavakkam, Sudarshanagopal Vin"]
[Black "Kukic, Boris"]
[Result "1/2-1/2"]
[ECO "C13"]
[WhiteElo "1786"]
[BlackElo "2056"]
[Annotator "NA"]
[PlyCount "99"]
[EventDate "2020.01.20"]
[EventType "swiss"]
[EventCountry "GGB"]
[SourceTitle "playchess.com"]
[Source "ChessBase"]
[SourceQuality "1"]
[TimeControl "6600+10"]

1. e4 {[%emt 0:00:39]} e6 {[%emt 0:00:59]} 2. d4 {[%emt 0:01:26]} d5 {[%emt 0:00:19]} 3. Nc3 {[%emt 0:00:06]} dxe4 {[%emt 0:00:28]} 4. Nxe4 {[%emt 0:01:02]} Nf6 {[%emt 0:02:13]} 5. Bg5 {[%emt 0:01:28]} Be7 {[%emt 0:02:42]} 6. Nxf6+ {[%emt 0:00:09]} Bxf6 {[%emt 0:00:11]} 7. Bxf6 {[%emt 0:00:10]} Qxf6 {[%emt 0:00:15]} 8. Nf3 {[%emt 0:00:11]} O-O {[%emt 0:00:14]} 9. Bd3 {[%emt 0:01:24]} Nd7 {[%emt 0:02:22]} 10. Qd2 {[%emt 0:01:18]} c5 {[%emt 0:00:42]} 11. O-O-O {[%emt 0:10:57]} cxd4 {[%emt 0:01:59]} 12. Ng5 {[%emt 0:09:14]} g6 {[%emt 0:03:40]} 13. h4 {[%emt 0:01:40]} Nc5 {[%emt 0:01:44]} 14. h5 {[%emt 0:00:46]} Nxd3+ {[%emt 0:00:17]} 15. cxd3 {[%emt 0:00:05]} h6 {[%emt 0:00:35]} 16. Ne4 {[%emt 0:00:20]} Qg7 {[%emt 0:00:28]} 17. hxg6 {[%emt 0:00:10]} f5 {[%emt 0:00:43]} 18. Rxh6 {[%emt 0:05:14]} fxe4 {[%emt 0:03:27]} 19. Rdh1 {[%emt 0:00:06]} e3 {[%emt 0:01:45]} 20. Qa5 {[%emt 0:01:11]} Qxh6 {[%emt 0:01:00]} 21. Rxh6 {[%emt 0:01:54]} exf2 {[%emt 0:00:07]} 22. Rh1 {[%emt 0:01:53]} f1=Q+ {[%emt 0:00:10]} 23. Rxf1 {[%emt 0:00:06]} Rxf1+ {[%emt 0:00:09]} 24. Kd2 {[%emt 0:00:27]} Rf5 {[%emt 0:06:40]} 25. Qc7 {[%emt 0:00:19]} Kf8 {[%emt 0:01:00]} 26. Qh7 {[%emt 0:00:36]} Ke8 {[%emt 0:00:43]} 27. g7 {[%emt 0:02:00]} Rf2+ {[%emt 0:00:21]} 28. Ke1 {[%emt 0:00:17]} Rxg2 {[%emt 0:00:07]} 29. g8=Q+ {[%emt 0:01:15]} Rxg8 {[%emt 0:00:13]} 30. Qxg8+ {[%emt 0:00:08]} Ke7 {[%emt 0:00:17]} 31. Qg7+ {[%emt 0:00:06]} Ke8 {[%emt 0:00:17]} 32. Qxd4 {[%emt 0:00:07]} a5 {[%emt 0:00:09]} 33. Qc3 {[%emt 0:00:33]} Kd7 {[%emt 0:00:14]} 34. Kd2 {[%emt 0:01:58]} Ra6 {[%emt 0:00:10]} 35. Ke3 {[%emt 0:00:44]} Kd8 {[%emt 0:00:22]} 36. Qh8+ {[%emt 0:01:06]} Kc7 {[%emt 0:00:15]} 37. Qe5+ {[%emt 0:00:18]} Kd8 {[%emt 0:00:14]} 38. Qb5 {[%emt 0:00:48]} Kc7 {[%emt 0:00:30]} 39. Qe5+ {[%emt 0:03:37]} Kd8 {[%emt 0:00:12]} 40. Kf4 {[%emt 0:00:41]} Kd7 {[%emt 0:03:54]} 41. Kg5 {[%emt 0:00:34]} Rd6 {[%emt 0:02:51]} 42. Kf6 {[%emt 0:02:13]} b6 {[%emt 0:00:36]} 43. d4 {[%emt 0:04:55]} Bb7 {[%emt 0:02:22]} 44. Qb5+ {[%emt 0:05:37]} Kd8 {[%emt 0:09:12]} 45. b4 {[%emt 0:05:46]} axb4 {[%emt 0:00:31]} 46. Qxb4 {[%emt 0:00:14]} Kd7 {[%emt 0:00:09]} 47. Qb5+ {[%emt 0:00:51]} Kc7 {[%emt 0:04:38]} 48. Ke7 {[%emt 0:00:18]} Bd5 {[%emt 0:00:26]} 49. Qa4 {[%emt 0:00:58]} Rc6 {[%emt 0:00:25]} 50. Qa7+ {[%emt 0:03:04]} 1/2-1/2

[Event "Gibraltar Challengers A 2020"]
[Site "Caleta"]
[Date "2020.01.21"]
[Round "1.33"]
[White "Huguet, Sergio"]
[Black "Ankitha Goud Palle"]
[Result "1/2-1/2"]
[ECO "A36"]
[WhiteElo "2055"]
[BlackElo "1761"]
[Annotator "NA"]
[PlyCount "113"]
[EventDate "2020.01.20"]
[EventType "swiss"]
[EventCountry "GGB"]
[SourceTitle "playchess.com"]
[Source "ChessBase"]
[SourceQuality "1"]
[TimeControl "6600+10"]

1. c4 {[%emt 1:03:44]} c5 {[%emt 0:01:07]} 2. g3 {[%emt 0:00:32]} Nc6 {[%emt 0:00:37]} 3. Bg2 {[%emt 0:00:30]} g6 {[%emt 0:00:09]} 4. Nc3 {[%emt 0:00:57]} Bg7 {[%emt 0:00:09]} 5. e4 {[%emt 0:01:44]} e5 {[%emt 0:01:49]} 6. Nge2 {[%emt 0:01:16]} Nge7 {[%emt 0:00:07]} 7. d3 {[%emt 0:01:45]} O-O {[%emt 0:01:43]} 8. O-O {[%emt 0:01:08]} d6 {[%emt 0:00:20]} 9. a3 {[%emt 0:02:50]} Nd4 {[%emt 0:03:04]} 10. b4 {[%emt 0:06:00]} b6 {[%emt 0:01:09]} 11. Be3 {[%emt 0:04:36]} Bg4 {[%emt 0:09:51]} 12. f3 {[%emt 0:01:56]} Be6 {[%emt 0:01:25]} 13. Nd5 {[%emt 0:03:00]} Nxe2+ {[%emt 0:03:37]} 14. Qxe2 {[%emt 0:00:21]} Nc6 {[%emt 0:00:11]} 15. b5 {[%emt 0:09:18]} Bxd5 {[%emt 0:05:51]} 16. cxd5 {[%emt 0:03:52]} Ne7 {[%emt 0:03:10]} 17. a4 {[%emt 0:06:01]} h6 {[%emt 0:08:24]} 18. Ra3 {[%emt 0:06:24]} f5 {[%emt 0:06:31]} 19. Rfa1 {[%emt 0:07:27]} Qd7 {[%emt 0:03:52]} 20. Qb2 {[%emt 0:05:13]} a5 {[%emt 0:05:25]} 21. bxa6 {[%emt 0:02:36]} Rxa6 {[%emt 0:00:03]} 22. Qb5 {[%emt 0:08:32]} Qa7 {[%emt 0:04:47]} 23. Bd2 {[%emt 0:01:41]} Ra8 {[%emt 0:03:03]} 24. Bf1 {[%emt 0:02:43]} Qb7 {[%emt 0:04:10]} 25. Be2 {[%emt 0:03:21]} Kf7 {[%emt 0:03:23]} 26. Qb3 {[%emt 0:05:55]} R6a7 {[%emt 0:07:38]} 27. Qb5 {[%emt 0:03:32]} Qd7 {[%emt 0:03:49]} 28. Qxd7 {[%emt 0:01:39]} Rxd7 {[%emt 0:00:03]} 29. Rb1 {[%emt 0:00:54]} Nc8 {[%emt 0:01:56]} 30. Rb5 {[%emt 0:02:07]} Rda7 {[%emt 0:01:14]} 31. Bd1 {[%emt 0:01:10]} Bf8 {[%emt 0:03:04]} 32. Ra1 {[%emt 0:01:50]} Rc7 {[%emt 0:04:30]} 33. Bb3 {[%emt 0:02:45]} Ra6 {[%emt 0:02:46]} 34. Bc4 {[%emt 0:03:10]} Rca7 {[%emt 0:02:09]} 35. a5 {[%emt 0:00:38]} bxa5 {[%emt 0:00:25]} 36. Raxa5 {[%emt 0:00:48]} Rxa5 {[%emt 0:01:33]} 37. Bxa5 {[%emt 0:00:37]} Ra8 {[%emt 0:02:49]} 38. Kf2 {[%emt 0:00:10]} Be7 {[%emt 0:01:04]} 39. Ke2 {[%emt 0:01:06]} Ke8 {[%emt 0:02:13]} 40. Kd2 {[%emt 0:00:38]} Bd8 {[%emt 0:01:36]} 41. Bc3 {[%emt 0:00:57]} Nb6 {[%emt 0:01:26]} 42. Kc2 {[%emt 0:01:47]} Kd7 {[%emt 0:00:46]} 43. Kb3 {[%emt 0:01:29]} Kc8 {[%emt 0:01:00]} 44. Bd2 {[%emt 0:00:33]} h5 {[%emt 0:00:10]} 45. Bc3 {[%emt 0:00:21]} Ra7 {[%emt 0:00:20]} 46. Kc2 {[%emt 0:00:40]} fxe4 {[%emt 0:00:43]} 47. fxe4 {[%emt 0:00:12]} Rf7 {[%emt 0:00:29]} 48. Rb2 {[%emt 0:00:31]} Rf2+ {[%emt 0:01:09]} 49. Kb3 {[%emt 0:00:33]} Rxb2+ {[%emt 0:00:26]} 50. Bxb2 {[%emt 0:00:10]} Nxc4 {[%emt 0:00:35]} 51. Kxc4 {[%emt 0:00:16]} Kd7 {[%emt 0:00:08]} 52. Kb5 {[%emt 0:00:06]} Bg5 {[%emt 0:00:10]} 53. h3 {[%emt 0:00:12]} Be3 {[%emt 0:00:09]} 54. Bc3 {[%emt 0:00:11]} Bg5 {[%emt 0:00:44]} 55. Be1 {[%emt 0:00:09]} Be3 {[%emt 0:00:05]} 56. Bc3 {[%emt 0:00:07]} Bg5 57. Be1 {[%emt 0:00:48]} 1/2-1/2

[Event "Gibraltar Challengers A 2020"]
[Site "Caleta"]
[Date "2020.01.21"]
[Round "1.34"]
[White "Lafour, Jephte"]
[Black "Karlsson, Jorgen"]
[Result "0-1"]
[ECO "A04"]
[WhiteElo "1690"]
[BlackElo "2054"]
[Annotator "NA"]
[PlyCount "104"]
[EventDate "2020.01.20"]
[EventType "swiss"]
[EventCountry "GGB"]
[SourceTitle "playchess.com"]
[Source "ChessBase"]
[SourceQuality "1"]
[TimeControl "6600+10"]

1. e4 {[%emt 0:00:00]} g6 {[%emt 0:00:00]} 2. Nf3 {[%emt 0:00:32]} Bg7 {[%emt 0:00:00]} 3. d3 {[%emt 0:01:05]} c5 {[%emt 0:00:19]} 4. g3 {[%emt 0:01:11]} Nc6 {[%emt 0:00:58]} 5. Bg2 {[%emt 0:00:46]} d6 {[%emt 0:03:59]} 6. O-O {[%emt 0:02:29]} h6 {[%emt 0:05:44]} 7. h3 {[%emt 0:05:14]} e5 {[%emt 0:01:25]} 8. Nc3 {[%emt 0:04:36]} Nge7 {[%emt 0:05:34]} 9. Be3 {[%emt 0:05:18]} Be6 {[%emt 0:01:33]} 10. Ne2 {[%emt 0:09:58]} Qd7 {[%emt 0:01:00]} 11. Kh2 {[%emt 0:00:09]} f5 {[%emt 0:07:13]} 12. Nh4 {[%emt 0:09:11]} Nd4 {[%emt 0:10:49]} 13. c3 {[%emt 0:03:30]} Nxe2 {[%emt 0:00:37]} 14. Qxe2 {[%emt 0:00:14]} O-O {[%emt 0:01:57]} 15. f4 {[%emt 0:07:19]} exf4 {[%emt 0:01:06]} 16. gxf4 {[%emt 0:01:06]} Rae8 {[%emt 0:00:45]} 17. Qd2 {[%emt 0:04:41]} b6 {[%emt 0:01:16]} 18. b3 {[%emt 0:00:56]} Bf6 {[%emt 0:08:42]} 19. Nf3 {[%emt 0:01:28]} Nc6 {[%emt 0:01:50]} 20. Rad1 {[%emt 0:00:51]} Qg7 {[%emt 0:01:44]} 21. e5 {[%emt 0:01:48]} Be7 {[%emt 0:02:21]} 22. d4 {[%emt 0:01:12]} cxd4 {[%emt 0:04:09]} 23. cxd4 {[%emt 0:02:24]} d5 {[%emt 0:04:44]} 24. Rg1 {[%emt 0:00:47]} Bb4 {[%emt 0:01:35]} 25. Qd3 {[%emt 0:02:35]} Rc8 {[%emt 0:07:03]} 26. Qb5 {[%emt 0:01:48]} Qd7 {[%emt 0:09:54]} 27. Bh1 {[%emt 0:04:29]} Kh7 {[%emt 0:00:48]} 28. Rg2 {[%emt 0:03:55]} Be7 {[%emt 0:01:09]} 29. Rdg1 {[%emt 0:06:58]} Rg8 {[%emt 0:00:30]} 30. h4 {[%emt 0:03:08]} Nxe5 {[%emt 0:00:18]} 31. Qe2 {[%emt 0:01:42]} Nxf3+ {[%emt 0:05:09]} 32. Qxf3 {[%emt 0:00:19]} Bxh4 {[%emt 0:00:31]} 33. Qh3 {[%emt 0:01:26]} Bf6 {[%emt 0:01:32]} 34. Re2 {[%emt 0:01:36]} Bf7 {[%emt 0:03:49]} 35. Bf3 {[%emt 0:01:34]} Rc3 {[%emt 0:02:13]} 36. Kg2 {[%emt 0:00:52]} Re8 {[%emt 0:00:47]} 37. Kf2 {[%emt 0:01:39]} Rexe3 {[%emt 0:03:56]} 38. Rxe3 {[%emt 0:01:56]} Bxd4 {[%emt 0:00:08]} 39. Rge1 {[%emt 0:00:37]} Qe7 {[%emt 0:02:08]} 40. Bd1 {[%emt 0:00:15]} Qc5 {[%emt 0:02:35]} 41. Qg3 {[%emt 0:01:11]} Rxe3 {[%emt 0:00:51]} 42. Rxe3 {[%emt 0:00:18]} Qc1 {[%emt 0:00:23]} 43. Be2 {[%emt 0:00:43]} Qd2 {[%emt 0:00:09]} 44. a4 {[%emt 0:00:56]} a5 {[%emt 0:00:13]} 45. Qf3 {[%emt 0:00:56]} Bc5 {[%emt 0:00:41]} 46. Qg3 {[%emt 0:00:52]} Be6 {[%emt 0:00:34]} 47. Qf3 {[%emt 0:00:21]} Bc8 {[%emt 0:00:08]} 48. Qg3 {[%emt 0:00:37]} Ba6 {[%emt 0:00:29]} 49. Qf3 {[%emt 0:00:02]} Bxe2 {[%emt 0:00:20]} 50. Qxe2 {[%emt 0:00:42]} Bxe3+ {[%emt 0:00:07]} 51. Kf3 {[%emt 0:00:34]} Qxe2+ {[%emt 0:00:07]} 52. Kxe2 {[%emt 0:00:02]} Bxf4 {[%emt 0:00:11]} 0-1

[Event "Gibraltar Challengers A 2020"]
[Site "Caleta"]
[Date "2020.01.21"]
[Round "1.35"]
[White "Martinez Lopez, Jaume"]
[Black "Hng, Mei-Xian Eunice"]
[Result "1-0"]
[ECO "A43"]
[WhiteElo "2042"]
[BlackElo "1661"]
[Annotator "NA"]
[PlyCount "97"]
[EventDate "2020.01.20"]
[EventType "swiss"]
[EventCountry "GGB"]
[SourceTitle "playchess.com"]
[Source "ChessBase"]
[SourceQuality "1"]
[TimeControl "6600+10"]

1. d4 {[%emt 0:00:00]} Nf6 {[%emt 0:00:10]} 2. Nf3 {[%emt 0:00:01]} c5 {[%emt 0:00:21]} 3. d5 {[%emt 0:00:07]} e6 {[%emt 0:00:22]} 4. Nc3 {[%emt 0:00:08]} d6 {[%emt 0:05:10]} 5. e4 {[%emt 0:00:42]} exd5 {[%emt 0:01:55]} 6. exd5 {[%emt 0:00:16]} Be7 {[%emt 0:00:39]} 7. Bb5+ {[%emt 0:00:34]} Bd7 {[%emt 0:02:50]} 8. a4 {[%emt 0:00:12]} O-O {[%emt 0:01:38]} 9. O-O {[%emt 0:00:13]} a6 {[%emt 0:06:55]} 10. Bd3 {[%emt 0:01:09]} Bg4 {[%emt 0:04:34]} 11. h3 {[%emt 0:00:59]} Bxf3 {[%emt 0:01:56]} 12. Qxf3 {[%emt 0:00:06]} Nbd7 {[%emt 0:00:12]} 13. Qd1 {[%emt 0:29:58]} Re8 {[%emt 0:08:23]} 14. Re1 {[%emt 0:00:41]} g6 {[%emt 0:07:24]} 15. Bf4 {[%emt 0:04:51]} Qb6 {[%emt 0:10:31]} 16. Qd2 {[%emt 0:02:54]} Qb4 {[%emt 0:02:22]} 17. a5 {[%emt 0:02:51]} b5 {[%emt 0:05:48]} 18. axb6 {[%emt 0:19:11]} Qxb6 {[%emt 0:00:26]} 19. Ra4 {[%emt 0:00:36]} Qb7 {[%emt 0:14:41]} 20. Rea1 {[%emt 0:03:09]} Nb8 {[%emt 0:02:10]} 21. Bf1 {[%emt 0:02:04]} Bf8 {[%emt 0:05:36]} 22. R1a3 {[%emt 0:19:10]} Qb6 {[%emt 0:09:53]} 23. Rb3 {[%emt 0:01:00]} Qc7 {[%emt 0:01:38]} 24. Bh2 {[%emt 0:06:30]} Qd8 {[%emt 0:07:31]} 25. Nb5 {[%emt 0:09:38]} Nbd7 {[%emt 0:02:48]} 26. Nc3 {[%emt 0:02:51]} Qc8 {[%emt 0:04:14]} 27. Rba3 {[%emt 0:00:13]} Nb8 {[%emt 0:01:08]} 28. Bc4 {[%emt 0:01:52]} Nfd7 {[%emt 0:00:40]} 29. Bf1 {[%emt 0:00:37]} Nb6 {[%emt 0:00:38]} 30. Ra5 {[%emt 0:00:11]} N6d7 {[%emt 0:00:32]} 31. Nb5 {[%emt 0:00:14]} Ne5 {[%emt 0:00:24]} 32. Ra1 {[%emt 0:01:31]} Nbd7 {[%emt 0:00:22]} 33. Nc3 {[%emt 0:00:08]} c4 {[%emt 0:00:40]} 34. f4 {[%emt 0:00:24]} Bh6 {[%emt 0:00:20]} 35. Qf2 {[%emt 0:00:22]} Nc6 {[%emt 0:00:31]} 36. dxc6 Qxc6 {[%emt 0:00:01]} 37. Qd4 {[%emt 0:00:17]} Bg7 {[%emt 0:00:16]} 38. Qxc4 {[%emt 0:00:02]} Qb6+ {[%emt 0:00:00]} 39. Kh1 {[%emt 0:00:13]} Rec8 {[%emt 0:00:11]} 40. Qb3 {[%emt 0:00:26]} Qf2 {[%emt 0:00:13]} 41. Ne4 {[%emt 0:00:15]} Qd4 {[%emt 0:00:22]} 42. Bd3 {[%emt 0:00:02]} Rab8 {[%emt 0:00:10]} 43. Qa4 {[%emt 0:00:05]} Qxa4 {[%emt 0:00:19]} 44. R5xa4 {[%emt 0:00:13]} d5 {[%emt 0:00:01]} 45. Nc3 {[%emt 0:00:06]} Rxb2 {[%emt 0:00:03]} 46. Nxd5 {[%emt 0:00:02]} Re8 {[%emt 0:00:05]} 47. Rxa6 {[%emt 0:00:09]} Rb5 {[%emt 0:00:01]} 48. Bxb5 {[%emt 0:00:02]} Bxa1 {[%emt 0:00:02]} 49. Rxa1 {[%emt 0:00:02]} 1-0

[Event "Gibraltar Challengers A 2020"]
[Site "Caleta"]
[Date "2020.01.21"]
[Round "1.36"]
[White "Campuzano, Franco"]
[Black "Levay, Sorin"]
[Result "0-1"]
[ECO "A41"]
[WhiteElo "1785"]
[BlackElo "2192"]
[Annotator "ChessBase"]
[PlyCount "58"]
[EventDate "2020.01.20"]
[EventType "swiss"]
[EventCountry "GGB"]
[SourceTitle "playchess.com"]
[Source "ChessBase"]
[SourceQuality "1"]
[TimeControl "6600+10"]

1. Nf3 {[%emt 0:00:00]} d6 {[%emt 0:00:01]} 2. d4 {[%emt 0:00:20]} f5 {[%emt 0:00:08]} 3. Bf4 {[%emt 0:01:00]} g6 {[%emt 0:01:23]} 4. e3 {[%emt 0:01:17]} Bg7 {[%emt 0:00:07]} 5. c3 {[%emt 0:01:19]} Nc6 {[%emt 0:01:15]} 6. Bb5 {[%emt 0:03:23]} a6 {[%emt 0:00:07]} 7. Ba4 {[%emt 0:00:41]} b5 {[%emt 0:00:22]} 8. Bc2 {[%emt 0:00:48]} Nf6 {[%emt 0:00:14]} 9. h3 {[%emt 0:00:14]} O-O {[%emt 0:00:12]} 10. O-O {[%emt 0:03:08]} Qe8 {[%emt 0:00:11]} 11. d5 {[%emt 0:02:48]} e5 {[%emt 0:00:43]} 12. dxc6 {[%emt 0:04:33]} exf4 {[%emt 0:00:07]} 13. exf4 {[%emt 0:00:37]} Qxc6 {[%emt 0:00:16]} 14. Nd4 {[%emt 0:01:18]} Qb6 {[%emt 0:00:19]} 15. Bb3+ {[%emt 0:01:31]} Kh8 {[%emt 0:00:21]} 16. Ne6 {[%emt 0:01:07]} Bxe6 {[%emt 0:00:08]} 17. Bxe6 {[%emt 0:00:11]} Rae8 {[%emt 0:00:23]} 18. Bb3 {[%emt 0:03:15]} d5 {[%emt 0:00:53]} 19. Nd2 {[%emt 0:01:19]} c6 {[%emt 0:01:01]} 20. a4 {[%emt 0:04:23]} Ne4 {[%emt 0:03:18]} 21. axb5 {[%emt 0:01:14]} axb5 {[%emt 0:00:11]} 22. Nxe4 {[%emt 0:05:51]} fxe4 {[%emt 0:00:16]} 23. Qd2 {[%emt 0:01:48]} Rf5 {[%emt 0:01:27]} 24. Rae1 {[%emt 0:04:52]} Ref8 {[%emt 0:01:33]} 25. g3 {[%emt 0:00:36]} b4 {[%emt 0:00:44]} 26. Qe3 {[%emt 0:04:53]} Qb8 {[%emt 0:01:24]} 27. Rb1 {[%emt 0:05:53]} g5 {[%emt 0:02:28]} 28. fxg5 {[%emt 0:02:59]} Rf3 {[%emt 0:00:09]} 29. Qe1 {[%emt 0:01:16]} e3 {[%emt 0:00:15]} 0-1

[Event "Gibraltar Challengers A 2020"]
[Site "Caleta"]
[Date "2020.01.21"]
[Round "1.37"]
[White "Vila Dupla, Aurelio"]
[Black "Stolniceanu, Victor-Dumitru"]
[Result "0-1"]
[ECO "A35"]
[WhiteElo "2092"]
[BlackElo "2074"]
[Annotator "NA"]
[PlyCount "125"]
[EventDate "2020.01.20"]
[EventType "swiss"]
[EventCountry "GGB"]
[SourceTitle "playchess.com"]
[Source "ChessBase"]
[SourceQuality "1"]
[TimeControl "6600+10"]

1. Nf3 {[%emt 0:00:00]} c5 {[%emt 0:00:25]} 2. c4 {[%emt 0:00:11]} Nc6 {[%emt 0:00:14]} 3. Nc3 {[%emt 0:00:13]} d6 {[%emt 0:00:13]} 4. d4 {[%emt 0:05:29]} Bg4 {[%emt 0:02:52]} 5. d5 {[%emt 0:05:03]} Bxf3 {[%emt 0:01:07]} 6. exf3 {[%emt 0:00:16]} Nd4 {[%emt 0:03:01]} 7. Be3 {[%emt 0:05:19]} Nf5 {[%emt 0:01:36]} 8. Bf4 {[%emt 0:04:53]} g6 {[%emt 0:00:51]} 9. Qa4+ {[%emt 0:05:54]} Qd7 {[%emt 0:00:15]} 10. Nb5 {[%emt 0:00:39]} Kd8 {[%emt 0:00:26]} 11. Bd2 {[%emt 0:09:29]} b6 {[%emt 0:00:52]} 12. Bc3 {[%emt 0:02:12]} Bg7 {[%emt 0:00:40]} 13. Bxg7 {[%emt 0:01:34]} Nxg7 {[%emt 0:00:10]} 14. Bd3 {[%emt 0:03:16]} h5 {[%emt 0:01:31]} 15. Qc2 {[%emt 0:01:41]} Nh6 {[%emt 0:00:18]} 16. a4 {[%emt 0:07:26]} a6 {[%emt 0:00:24]} 17. Nc3 {[%emt 0:00:06]} Ngf5 {[%emt 0:00:19]} 18. Ne2 {[%emt 0:00:08]} Kc7 {[%emt 0:01:29]} 19. Qc3 {[%emt 0:00:15]} a5 {[%emt 0:00:48]} 20. Bxf5 {[%emt 0:08:41]} Nxf5 {[%emt 0:00:33]} 21. O-O {[%emt 0:03:42]} Rae8 {[%emt 0:00:14]} 22. Rfe1 {[%emt 0:00:31]} h4 {[%emt 0:00:51]} 23. Qd3 {[%emt 0:01:36]} e6 {[%emt 0:01:20]} 24. dxe6 {[%emt 0:01:12]} fxe6 {[%emt 0:01:02]} 25. Nc3 {[%emt 0:07:08]} Nd4 {[%emt 0:01:30]} 26. Ne4 {[%emt 0:01:09]} Qd8 {[%emt 0:00:53]} 27. b4 {[%emt 0:00:14]} d5 {[%emt 0:00:48]} 28. bxc5 {[%emt 0:15:55]} dxe4 {[%emt 0:01:06]} 29. cxb6+ {[%emt 0:00:06]} Kb7 {[%emt 0:06:17]} 30. Qxe4+ {[%emt 0:00:15]} Nc6 {[%emt 0:00:11]} 31. Rad1 {[%emt 0:06:11]} Qe7 {[%emt 0:00:09]} 32. c5 {[%emt 0:01:20]} Rd8 {[%emt 0:00:17]} 33. Qxg6 {[%emt 0:05:48]} Rhg8 {[%emt 0:02:57]} 34. Qe4 {[%emt 0:01:05]} Qg5 {[%emt 0:00:35]} 35. f4 {[%emt 0:02:29]} Qg4 {[%emt 0:02:28]} 36. Rxd8 {[%emt 0:00:42]} Rxd8 {[%emt 0:00:15]} 37. h3 {[%emt 0:01:54]} Qh5 {[%emt 0:00:17]} 38. Qxe6 {[%emt 0:01:05]} Qxc5 {[%emt 0:00:17]} 39. Qf7+ {[%emt 0:00:24]} Kxb6 {[%emt 0:00:13]} 40. Qf6 {[%emt 0:00:43]} Rd6 {[%emt 0:00:25]} 41. Qxh4 {[%emt 0:00:09]} Qb4 {[%emt 0:01:43]} 42. Re3 {[%emt 0:00:22]} Qxa4 {[%emt 0:00:34]} 43. Qg3 {[%emt 0:00:09]} Nd4 {[%emt 0:01:03]} 44. Qg8 {[%emt 0:00:01]} Ne2+ {[%emt 0:03:26]} 45. Kh2 {[%emt 0:00:21]} Qxf4+ {[%emt 0:00:32]} 46. Rg3 {[%emt 0:00:02]} Nxg3 {[%emt 0:04:46]} 47. Qb8+ {[%emt 0:00:03]} Kc5 {[%emt 0:00:39]} 48. Qc7+ {[%emt 0:00:23]} Kb5 {[%emt 0:00:29]} 49. fxg3 {[%emt 0:00:13]} Qd4 {[%emt 0:00:17]} 50. Qb7+ {[%emt 0:00:10]} Rb6 {[%emt 0:00:43]} 51. Qe7 {[%emt 0:00:06]} a4 {[%emt 0:00:39]} 52. h4 {[%emt 0:00:07]} Rd6 {[%emt 0:01:08]} 53. h5 {[%emt 0:00:14]} a3 {[%emt 0:00:42]} 54. Qe2+ {[%emt 0:00:01]} Qc4 {[%emt 0:00:26]} 55. Qe5+ {[%emt 0:00:03]} Rd5 {[%emt 0:00:25]} 56. Qe8+ {[%emt 0:00:19]} Kb4 {[%emt 0:00:25]} 57. h6 {[%emt 0:00:02]} Qc5 {[%emt 0:04:17]} 58. Qb8+ {[%emt 0:00:17]} Kc3 {[%emt 0:00:36]} 59. Qh8+ {[%emt 0:00:07]} Qd4 {[%emt 0:01:01]} 60. Qc8+ {[%emt 0:00:25]} Rc5 {[%emt 0:00:14]} 61. Qh3 {[%emt 0:00:02]} a2 {[%emt 0:00:49]} 62. h7 {[%emt 0:00:01]} a1=Q {[%emt 0:00:49]} 63. g4+ {[%emt 0:00:05]} 0-1

[Event "Gibraltar Challengers A 2020"]
[Site "Caleta"]
[Date "2020.01.21"]
[Round "2.1"]
[White "Godoy Olazabal, Artur"]
[Black "Sousa, Ludy Helsio Paulo"]
[Result "0-1"]
[ECO "B92"]
[WhiteElo "2154"]
[BlackElo "2247"]
[Annotator "ChessBase"]
[PlyCount "76"]
[EventDate "2020.01.20"]
[EventType "swiss"]
[EventCountry "GGB"]
[SourceTitle "playchess.com"]
[Source "ChessBase"]
[SourceQuality "1"]
[TimeControl "6600+10"]

1. e4 {[%emt 0:00:09]} c5 {[%emt 0:00:17]} 2. Nf3 {[%emt 0:00:06]} a6 {[%emt 0:00:03]} 3. Nc3 {[%emt 0:00:09]} d6 {[%emt 0:00:11]} 4. d4 {[%emt 0:00:22]} cxd4 {[%emt 0:00:01]} 5. Nxd4 {[%emt 0:00:02]} e5 {[%emt 0:00:09]} 6. Nb3 {[%emt 0:01:39]} Be7 {[%emt 0:01:54]} 7. Be2 {[%emt 0:00:09]} Nf6 {[%emt 0:00:03]} 8. g4 {[%emt 0:00:15]} h6 {[%emt 0:02:08]} 9. Rg1 {[%emt 0:12:17]} Be6 {[%emt 0:02:10]} 10. f4 {[%emt 0:03:27]} Nfd7 {[%emt 0:13:58]} 11. f5 {[%emt 0:03:06]} Qb6 {[%emt 0:03:33]} 12. Rg2 {[%emt 0:03:27]} Bh4+ {[%emt 0:00:25]} 13. Kf1 {[%emt 0:00:08]} Bxb3 {[%emt 0:00:37]} 14. axb3 {[%emt 0:00:07]} Nf6 {[%emt 0:03:42]} 15. Qd3 {[%emt 0:03:30]} Bg5 {[%emt 0:00:56]} 16. h4 {[%emt 0:06:31]} Bxc1 {[%emt 0:04:44]} 17. Rxc1 {[%emt 0:00:02]} Nbd7 {[%emt 0:01:08]} 18. Rd1 {[%emt 0:04:50]} Ke7 {[%emt 0:11:14]} 19. Bf3 {[%emt 0:04:00]} Nc5 {[%emt 0:05:38]} 20. Qc4 {[%emt 0:19:48]} Qc6 {[%emt 0:03:53]} 21. g5 {[%emt 0:00:46]} hxg5 {[%emt 0:00:22]} 22. hxg5 {[%emt 0:00:07]} Ne8 {[%emt 0:08:50]} 23. g6 {[%emt 0:02:57]} fxg6 {[%emt 0:02:55]} 24. Rxg6 {[%emt 0:00:10]} b5 {[%emt 0:00:44]} 25. Qe2 {[%emt 0:05:19]} Kd8 {[%emt 0:05:12]} 26. Nd5 {[%emt 0:05:13]} Ra7 {[%emt 0:00:30]} 27. Qe3 {[%emt 0:00:29]} Rf7 {[%emt 0:04:58]} 28. Qg5+ {[%emt 0:15:28]} Kd7 {[%emt 0:01:34]} 29. Kg1 {[%emt 0:06:23]} a5 {[%emt 0:11:45]} 30. Bg4 {[%emt 0:08:55]} Nxe4 {[%emt 0:03:20]} 31. f6+ {[%emt 0:00:30]} Kd8 {[%emt 0:02:18]} 32. fxg7+ {[%emt 0:00:05]} Nxg5 {[%emt 0:01:27]} 33. gxh8=Q {[%emt 0:00:03]} Qc5+ {[%emt 0:01:32]} 34. Kh1 {[%emt 0:00:11]} Rh7+ {[%emt 0:02:11]} 35. Qxh7 {[%emt 0:00:02]} Nxh7 {[%emt 0:00:11]} 36. Rg8 {[%emt 0:00:06]} Qf2 {[%emt 0:01:41]} 37. Rd3 {[%emt 0:03:09]} Qf7 {[%emt 0:02:36]} 38. Rc3 {[%emt 0:00:59]} Qxd5+ {[%emt 0:00:10]} 0-1